{"text_format":"1","workbook":"xlsx","n_sheets":5,"sheets":["エントリーシート","設定シート","設定シート_プルダウンリスト","設定シート_template","転記用シート"],"not_rendered":{"charts":0,"images":4,"macros":1,"external_links":0,"defined_names":16,"comments":0,"pivot_tables":0},"unopened":[],"bounds":{"document_bytes":16777216,"sheet_cells":100000,"rows_first":2000,"rows_last":500,"rows_between":2000,"halvings":0,"cell_chars":16384,"cell_head_chars":4096},"cells_cut":0,"cells_raw":0,"read":"whole","date_system":"1900"}

{"sheet":"エントリーシート","index":0,"n_rows":59,"n_cols":23,"rows_kept":59,"cut":false,"hidden":false,"merged":[[12,3,12,4],[20,8,20,11],[41,3,41,5],[42,3,42,5],[19,2,26,5],[41,8,41,11],[28,2,35,5],[15,8,19,11],[21,8,28,11],[32,7,32,11],[29,9,29,11],[20,7,28,7],[18,1,26,1],[34,7,50,7],[4,1,4,2],[14,8,14,9],[8,9,8,11],[9,9,9,11],[10,9,10,11],[11,9,11,11],[12,9,12,11],[9,1,10,1],[9,4,10,4],[8,5,13,5],[4,3,4,5],[9,3,10,3],[9,2,10,2],[13,3,13,4],[49,3,49,5],[45,4,45,5],[47,2,48,2],[44,2,46,2],[1,1,2,11],[14,7,19,7],[14,3,14,5],[15,3,15,5],[16,3,16,5],[17,3,17,5],[18,2,18,5],[43,3,43,5],[44,4,44,5],[27,1,35,1],[12,1,13,1],[47,1,48,1],[36,15,45,22],[44,1,46,1],[46,4,46,5],[47,4,47,5],[48,4,48,5],[43,8,43,11],[57,3,57,5],[58,3,58,5],[51,7,58,7],[52,8,58,11],[46,15,52,22],[15,14,52,14],[56,3,56,5],[27,2,27,5],[54,3,54,5],[55,3,55,5],[51,8,51,11],[44,10,44,11],[40,3,40,5],[15,15,15,22],[16,15,25,22],[26,15,35,22]]}
[]
[null,{"$f":"設定シート!B2","v":"第42回　優秀経営者顕彰　エントリーシート"},null,null,null,null,null,null,null,null,null,null,null,null,"Ⅴ．推薦理由",null,null,null,null,null,null,"受付No."]
[]
[]
[null,"推薦該当賞名",null,null,null,null,null,null,null,null,"処理年月日"]
[]
[null,"Ⅰ．推薦対象者履歴書",null,null,null,null,null,"Ⅳ．会社概要"]
[]
[null,1,"ふりがな",null,null,"写真データ\n貼付欄",null,23,"業種（大分類）"]
[null,2,"氏名",null,null,null,null,24,"業種（中分類）"]
[null,null,null,null,null,null,null,25,"事業内容"]
[null,3,"生年月日/年齢",null,{"$f":"IF(D12<>0,DATEDIF(エントリーシート!D12,設定シート!B3,\"Y\"),\"\")","v":""},null,null,26,"創業年月日"]
[null,4,"ふりがな（法人格を除く）",null,null,null,null,27,"主要取引銀行"]
[null,null,"法人名",null,null,null,null,28,"拠点（国内）",null,"拠点（国外）"]
[null,5,"正式役職名",null,null,null,null,29,"特許取得",null,"（特許取得件数計）"]
[null,6,"最終学歴/学部",null,null,null,null,null,null,null,null,null,null,null,35,"推薦理由ご記入欄"]
[null,7,"入社年月日"]
[null,8,"勤続年数"]
[null,9,"職歴"]
[]
[null,null,null,null,null,null,null,30,"会社経歴"]
[]
[]
[]
[]
[]
[]
[null,10,"公職及び団体役職歴等"]
[]
[null,null,null,null,null,null,null,31,"資本金（千円）"]
[null,null,null,null,null,null,null,32,"従業員数（人）",null,"一人当たり売上高",{"$f":"IF(J31<>0,J36/J31,\"\")","v":""}]
[]
[null,null,null,null,null,null,null,"以下金額欄の入力は「円単位」でお願いします。表示は自動で「百万円単位」となります。"]
[]
[null,null,null,null,null,null,null,33,"科目","直近決算","一期前決算","二期前決算"]
[null,null,null,null,null,null,null,null,"売上高"]
[null,null,null,null,null,null,null,null,"売上総利益"]
[null,null,null,null,null,null,null,null,"営業利益"]
[null,"Ⅱ．推薦対象者／窓口担当情報",null,null,null,null,null,null,"経常利益"]
[null,null,null,null,null,null,null,null,"税引き後純利益"]
[null,11,"法人名",null,null,null,null,null,"配当性向（％）"]
[null,12,"所属部署"]
[null,13,"ご担当者名",null,null,null,null,null,"営業利益率",{"$f":"IF(J36<>0,J38/J36,\"\")","v":""},"総資本利益率",{"$f":"IF(J48+J50+J51<>0,J39/(J48+J50+J51),\"\")","v":""}]
[null,14,"郵便番号"]
[null,15,"会社住所","（都道府県）",null,null,null,null,"科目","直近決算","経営指標"]
[null,null,null,"（市区町村）",null,null,null,null,"研究開発費 ※",null,"売上高研究開発費率",{"$f":"IF(J36<>0,J46/J36,\"\")","v":""}]
[null,null,null,"（町丁目以下）",null,null,null,null,"流動資産"]
[null,16,"連絡先","（代表）",null,null,null,null,"流動負債",null,"流動比率",{"$f":"IF(J48<>0,J47/J48,\"\")","v":""}]
[null,null,null,"（直通）",null,null,null,null,"固定資産"]
[null,17,"E-Mailアドレス",null,null,null,null,null,"固定負債",null,"固定長期適合率",{"$f":"IF(J50+J51<>0,J49/(J50+J51),\"\")","v":""}]
[null,null,null,null,null,null,null,null,"自己資本",null,"自己資本比率",{"$f":"IF(J48+J50+J51<>0,J51/(J48+J50+J51),\"\")","v":""}]
[null,null,null,null,null,null,null,34,"特筆すべき事項（国外売上、決算における注視すべき点など補足事項）"]
[null,"Ⅲ．推薦者"]
[]
[null,18,"推薦機関",null,null,null,null,null,null,null,null,null,null,null,"　一次選考評点結果フィードバックの希望",null,null,null,null,"事務局使用欄"]
[null,19,"役職",null,null,null,null,null,null,null,null,null,null,null,null,"（どちらかにチェック願います）",null,null,null,"ビジネスモデル","シェア/市場","CSR等","合計"]
[null,20,"推薦者氏名"]
[null,21,"連絡先電話番号"]
[null,22,"E-Mailアドレス",null,null,null,null,null,null,null,null,null,null,null,null,null,null,null,null,null,null,null,"日刊工業新聞社　優秀経営者顕彰事務局"]

{"sheet":"設定シート","index":1,"n_rows":6,"n_cols":3,"rows_kept":6,"cut":false,"hidden":true,"merged":[]}
["設定項目","設定内容","備考"]
["表題","第42回　優秀経営者顕彰　エントリーシート","←書類の表題（第何回）"]
["基準日","2024-09-20","←選考基準となる日付（応募締切日）"]
["創立記念日設定",{"$f":"B3-3653","v":"2014-09-20"},"←応募締切日の10年前の日付（創業10年以上のチェック用）"]
["資本金と従業員数の制限",{"$f":"IF(OR(エントリーシート!J30<500000,エントリーシート!J31<1000),\"OK\",\"NG\")","v":"OK"},"←変更しない"]
["最終チェック後メッセージ","ファイル名を「推薦者（記入者）の所属団体名_推薦対象者（経営者）の会社名.xlsm」として保存し、eメール添付にて事務局へご応募ください。","←ファイル名や送信先メールアドレスなどの情報"]

{"sheet":"設定シート_プルダウンリスト","index":2,"n_rows":25,"n_cols":13,"rows_kept":25,"cut":false,"hidden":true,"merged":[]}
["推薦該当賞名",null,"建設業","製造業","情報通信業","運輸業・郵便業","卸売業","小売業","不動産・物品賃貸業","学術研究・専門・技術サービス業","宿泊業・飲食サービス業","生活関連サービス業・娯楽業","サービス業"]
["1.優秀経営者賞",null,"総合工事業","食料品製造業","通信業","道路旅客運送業","各種商品卸売業","各種商品小売業","不動産取引業","専門サービス（他に分類されないもの）","宿泊業","洗濯・理容・美容・浴場業","廃棄物処理業"]
["2.次世代イノベーション経営者賞",null,"職別工事業（設備工事除く）","飲料・たばこ・飼料製造業","放送業","道路貨物運送業","繊維・衣服等卸売業","織物・衣服・身の回り品小売業","不動産賃貸業・管理業","広告業","飲食店","その他の生活関連サービス業","自動車整備業"]
["3.地域社会貢献者賞",null,"設備工事業","繊維工業","情報サービス業","水運業","飲食料品卸売業","飲食料品小売業","物品賃貸業","技術サービス業（他に分類されないもの）","持ち帰り・配達飲食サービス業",null,"機械等修理業"]
[null,null,null,"木材・木製品 製造業(家具を除く)","インターネット付随サービス業","倉庫業","建築材料,鉱物金属材料等卸売業","機械器具小売業",null,null,null,null,"職業紹介・労働者派遣業"]
[null,null,null,"家具・装備品製造業","映像・音声・文字情報制作業","運輸に付帯するサービス業","機械器具卸売業","無店舗小売業",null,null,null,null,"その他の事業サービス業"]
[null,null,null,"パルプ・紙・紙加工品製造業",null,"郵便業（信書便事業を含む）"]
[null,null,null,"印刷・同関連業"]
[null,null,null,"化学工業"]
[null,null,null,"石油製品・石炭製品製造業"]
[null,null,null,"プラスチック製品製造業"]
[null,null,null,"ゴム製品製造業"]
[null,null,null,"なめし革・同製品・毛皮製造業"]
[null,null,null,"窯業・土石製品製造業"]
[null,null,null,"鉄鋼業"]
[null,null,null,"非鉄金属製造業"]
[null,null,null,"金属製品製造業"]
[null,null,null,"はん用機械器具製造業"]
[null,null,null,"生産用機械器具製造業"]
[null,null,null,"業務用機械器具製造業"]
[null,null,null,"電子部品・デバイス・電子回路製造業"]
[null,null,null,"電気機械器具製造業"]
[null,null,null,"情報通信機械器具製造業"]
[null,null,null,"輸送用機械器具製造業"]
[null,null,null,"その他の製造業"]

{"sheet":"設定シート_template","index":3,"n_rows":59,"n_cols":23,"rows_kept":59,"cut":false,"hidden":true,"merged":[[55,3,55,5],[56,3,56,5],[57,3,57,5],[58,3,58,5],[46,15,52,22],[51,7,58,7],[51,8,51,11],[52,8,58,11],[54,3,54,5],[36,15,45,22],[40,3,40,5],[41,3,41,5],[44,1,46,1],[44,2,46,2],[44,4,44,5],[44,10,44,11],[45,4,45,5],[46,4,46,5],[27,1,35,1],[27,2,27,5],[28,2,35,5],[29,9,29,11],[32,7,32,11],[34,7,50,7],[47,1,48,1],[47,2,48,2],[47,4,47,5],[48,4,48,5],[49,3,49,5],[15,15,15,22],[16,3,16,5],[16,15,25,22],[17,3,17,5],[18,1,26,1],[18,2,18,5],[19,2,26,5],[20,7,28,7],[20,8,20,11],[21,8,28,11],[15,14,52,14],[41,8,41,11],[42,3,42,5],[43,3,43,5],[43,8,43,11],[26,15,35,22],[14,3,14,5],[14,7,19,7],[14,8,14,9],[15,3,15,5],[15,8,19,11],[1,1,2,11],[4,1,4,2],[4,3,4,5],[8,5,13,5],[8,9,8,11],[9,1,10,1],[9,2,10,2],[9,3,10,3],[9,4,10,4],[9,9,9,11],[10,9,10,11],[11,9,11,11],[12,1,13,1],[12,3,12,4],[12,9,12,11],[13,3,13,4]]}
[]
[null,{"$f":"設定シート!B2","v":"第42回　優秀経営者顕彰　エントリーシート"},null,null,null,null,null,null,null,null,null,null,null,null,"Ⅴ．推薦理由",null,null,null,null,null,null,"受付No."]
[]
[]
[null,"推薦該当賞名",null,null,null,null,null,null,null,null,"処理年月日"]
[]
[null,"Ⅰ．推薦対象者履歴書",null,null,null,null,null,"Ⅳ．会社概要"]
[]
[null,1,"ふりがな",null,null,"写真データ\n貼付欄",null,23,"業種（大分類）"]
[null,2,"氏名",null,null,null,null,24,"業種（中分類）"]
[null,null,null,null,null,null,null,25,"事業内容"]
[null,3,"生年月日/年齢",null,{"$f":"IF(D12<>0,DATEDIF(設定シート_template!D12,設定シート!B3,\"Y\"),\"\")","v":""},null,null,26,"創業年月日"]
[null,4,"ふりがな（法人格を除く）",null,null,null,null,27,"主要取引銀行"]
[null,null,"法人名",null,null,null,null,28,"拠点（国内）",null,"拠点（国外）"]
[null,5,"正式役職名",null,null,null,null,29,"特許取得",null,"（特許取得件数計）"]
[null,6,"最終学歴/学部",null,null,null,null,null,null,null,null,null,null,null,35,"推薦理由ご記入欄"]
[null,7,"入社年月日"]
[null,8,"勤続年数"]
[null,9,"職歴"]
[]
[null,null,null,null,null,null,null,30,"会社経歴"]
[]
[]
[]
[]
[]
[]
[null,10,"公職及び団体役職歴等"]
[]
[null,null,null,null,null,null,null,31,"資本金（千円）"]
[null,null,null,null,null,null,null,32,"従業員数（人）",null,"一人当たり売上高",{"$f":"IF(J31<>0,J36/J31,\"\")","v":""}]
[]
[null,null,null,null,null,null,null,"以下金額欄の入力は「円単位」でお願いします。表示は自動で「百万円単位」となります。"]
[]
[null,null,null,null,null,null,null,33,"科目","直近決算","一期前決算","二期前決算"]
[null,null,null,null,null,null,null,null,"売上高"]
[null,null,null,null,null,null,null,null,"売上総利益"]
[null,null,null,null,null,null,null,null,"営業利益"]
[null,"Ⅱ．推薦対象者／窓口担当情報",null,null,null,null,null,null,"経常利益"]
[null,null,null,null,null,null,null,null,"税引き後純利益"]
[null,11,"法人名",null,null,null,null,null,"配当性向（％）"]
[null,12,"所属部署"]
[null,13,"ご担当者名",null,null,null,null,null,"営業利益率",{"$f":"IF(J36<>0,J38/J36,\"\")","v":""},"総資本利益率",{"$f":"IF(J48+J50+J51<>0,J39/(J48+J50+J51),\"\")","v":""}]
[null,14,"郵便番号"]
[null,15,"会社住所","（都道府県）",null,null,null,null,"科目","直近決算","経営指標"]
[null,null,null,"（市区町村）",null,null,null,null,"研究開発費 ※",null,"売上高研究開発費率",{"$f":"IF(J36<>0,J46/J36,\"\")","v":""}]
[null,null,null,"（町丁目以下）",null,null,null,null,"流動資産"]
[null,16,"連絡先","（代表）",null,null,null,null,"流動負債",null,"流動比率",{"$f":"IF(J48<>0,J47/J48,\"\")","v":""}]
[null,null,null,"（直通）",null,null,null,null,"固定資産"]
[null,17,"E-Mailアドレス",null,null,null,null,null,"固定負債",null,"固定長期適合率",{"$f":"IF(J50+J51<>0,J49/(J50+J51),\"\")","v":""}]
[null,null,null,null,null,null,null,null,"自己資本",null,"自己資本比率",{"$f":"IF(J48+J50+J51<>0,J51/(J48+J50+J51),\"\")","v":""}]
[null,null,null,null,null,null,null,34,"特筆すべき事項（国外売上、決算における注視すべき点など補足事項）"]
[null,"Ⅲ．推薦者"]
[]
[null,18,"推薦機関",null,null,null,null,null,null,null,null,null,null,null,"　一次選考評点結果フィードバックの希望",null,null,null,null,"事務局使用欄"]
[null,19,"役職",null,null,null,null,null,null,null,null,null,null,null,null,"（どちらかにチェック願います）",null,null,null,"ビジネスモデル","シェア/市場","CSR等","合計"]
[null,20,"推薦者氏名"]
[null,21,"連絡先電話番号"]
[null,22,"E-Mailアドレス",null,null,null,null,null,null,null,null,null,null,null,null,null,null,null,null,null,null,null,"日刊工業新聞社　優秀経営者顕彰事務局"]

{"sheet":"転記用シート","index":4,"n_rows":3,"n_cols":72,"rows_kept":3,"cut":false,"hidden":true,"merged":[]}
["受付No","推薦該当賞名","ふりがな（氏）","ふりがな（名）","氏名（氏）","氏名（名）","生年月日","年齢","ふりがな（法人格を除く）","法人名","正式役職名","最終学歴及び学部","入社年月日","勤続年数","法人名","所属部署","ご担当者名","郵便番号","会社住所（都道府県）","会社住所（市区町村）","会社住所（町丁目以下）","連絡先（代表）","連絡先（直通）","E-Mailアドレス","推薦機関","役職","推薦者氏名","連絡先電話番号","E-Mailアドレス","業種（大分類）","業種（中分類）","事業内容","創業年月日","主要取引銀行","拠点（国内）","拠点（国外）","（特許取得件数）","資本金（千円）","従業員数（人）","一人当たり売上高","売上高（直近決算）","売上高（一期前決算）","売上高（二期前決算）","売上総利益（直近決算）","売上総利益（一期前決算）","売上総利益（二期前決算）","営業利益（直近決算）","営業利益（一期前決算）","営業利益（二期前決算）","経常利益（直近決算）","経常利益（一期前決算）","経常利益（二期前決算）","税引後純利益（直近決算）","税引後純利益（一期前決算）","税引後純利益（二期前決算）","配当性向（％）（直近決算）","配当性向（％）（一期前決算）","配当性向（％）（二期前決算）","営業利益率","総資本利益率","研究開発費（直近決算）","売上高研究開発費率","流動資産（直近決算）","流動負債（直近決算）","流動比率","固定資産（直近決算）","固定負債（直近決算）","固定長期適合率（長期資本固定比率）","自己資本（直近決算）","自己資本比率",null,"一次選考評点結果フィードバックの希望"]
[{"$f":"エントリーシート!W2","v":0},{"$f":"エントリーシート!D5","v":0},{"$f":"エントリーシート!D9","v":0},{"$f":"エントリーシート!E9","v":0},{"$f":"エントリーシート!D10","v":0},{"$f":"エントリーシート!E10","v":0},{"$f":"エントリーシート!D12","v":"00:00:00"},{"$f":"エントリーシート!E12","v":""},{"$f":"エントリーシート!D13","v":0},{"$f":"エントリーシート!D14","v":0},{"$f":"エントリーシート!D15","v":0},{"$f":"エントリーシート!D16","v":0},{"$f":"エントリーシート!D17","v":"00:00:00"},{"$f":"エントリーシート!D18","v":0},{"$f":"エントリーシート!D41","v":0},{"$f":"エントリーシート!D42","v":0},{"$f":"エントリーシート!D43","v":0},{"$f":"エントリーシート!D44","v":0},{"$f":"エントリーシート!E45","v":0},{"$f":"エントリーシート!E46","v":0},{"$f":"エントリーシート!E47","v":0},{"$f":"エントリーシート!E48","v":0},{"$f":"エントリーシート!E49","v":0},{"$f":"エントリーシート!D50","v":0},{"$f":"エントリーシート!D55","v":0},{"$f":"エントリーシート!D56","v":0},{"$f":"エントリーシート!D57","v":0},{"$f":"エントリーシート!D58","v":0},{"$f":"エントリーシート!D59","v":0},{"$f":"エントリーシート!J9","v":0},{"$f":"エントリーシート!J10","v":0},{"$f":"エントリーシート!J11","v":0},{"$f":"エントリーシート!J12","v":"00:00:00"},{"$f":"エントリーシート!J13","v":0},{"$f":"エントリーシート!J14","v":0},{"$f":"エントリーシート!L14","v":0},{"$f":"エントリーシート!L15","v":0},{"$f":"エントリーシート!J30","v":0},{"$f":"エントリーシート!J31","v":0},{"$f":"エントリーシート!L31","v":""},{"$f":"エントリーシート!J36","v":0},{"$f":"エントリーシート!K36","v":0},{"$f":"エントリーシート!L36","v":0},{"$f":"エントリーシート!J37","v":0},{"$f":"エントリーシート!K37","v":0},{"$f":"エントリーシート!L37","v":0},{"$f":"エントリーシート!J38","v":0},{"$f":"エントリーシート!K38","v":0},{"$f":"エントリーシート!L38","v":0},{"$f":"エントリーシート!J39","v":0},{"$f":"エントリーシート!K39","v":0},{"$f":"エントリーシート!L39","v":0},{"$f":"エントリーシート!J40","v":0},{"$f":"エントリーシート!K40","v":0},{"$f":"エントリーシート!L40","v":0},{"$f":"エントリーシート!J41","v":0},{"$f":"エントリーシート!K41","v":0},{"$f":"エントリーシート!L41","v":0},{"$f":"エントリーシート!J43","v":""},{"$f":"エントリーシート!L43","v":""},{"$f":"エントリーシート!J46","v":0},{"$f":"エントリーシート!L46","v":""},{"$f":"エントリーシート!J47","v":0},{"$f":"エントリーシート!J48","v":0},{"$f":"エントリーシート!L48","v":""},{"$f":"エントリーシート!J49","v":0},{"$f":"エントリーシート!J50","v":0},{"$f":"エントリーシート!L50","v":""},{"$f":"エントリーシート!J51","v":0},{"$f":"エントリーシート!L51","v":""},null,{"$f":"IF(BT3=1,\"希望する\",IF(BT3=2,\"希望しない\",\"\"))","v":"希望しない"}]
[null,null,null,null,null,null,null,null,null,null,null,null,null,null,null,null,null,null,null,null,null,null,null,null,null,null,null,null,null,null,null,null,null,null,null,null,null,null,null,null,null,null,null,null,null,null,null,null,null,null,null,null,null,null,null,null,null,null,null,null,null,null,null,null,null,null,null,null,null,null,null,2]